[Event "*** Titled Tuesday Blitz"]
[Site "Chess.com"]
[Date "2018.12.04"]
[Round "10"]
[White "Guenplen"]
[Black "amintabatabaei"]
[Result "0-1"]
[WhiteElo "2824"]
[BlackElo "2755"]
[TimeControl "180+2"]
[EndTime "15:25:11 PST"]
[Termination "amintabatabaei won by checkmate"]

1. d4 {[%clk 0:03:01.9]} 1... Nf6 {[%clk 0:03:00.7]} 2. Bf4 {[%clk 0:03:02.3]}
2... c5 {[%clk 0:03:01.1]} 3. e3 {[%clk 0:03:03.5]} 3... Nd5 {[%clk 0:02:58]} 4.
Bg3 {[%clk 0:03:04.4]} 4... Qb6 {[%clk 0:02:58.7]} 5. Nc3 {[%clk 0:03:05.4]}
5... Nxc3 {[%clk 0:02:59.6]} 6. bxc3 {[%clk 0:03:07.3]} 6... d5 {[%clk
0:03:01.2]} 7. Rb1 {[%clk 0:03:01.2]} 7... Qa5 {[%clk 0:02:57.8]} 8. Bb5+ {[%clk
0:02:59.6]} 8... Nc6 {[%clk 0:02:55.1]} 9. Ne2 {[%clk 0:02:56.7]} 9... e6 {[%clk
0:02:49.8]} 10. O-O {[%clk 0:02:55.5]} 10... Be7 {[%clk 0:02:51.2]} 11. c4
{[%clk 0:02:21.5]} 11... dxc4 {[%clk 0:02:41.6]} 12. dxc5 {[%clk 0:02:19.8]}
12... O-O {[%clk 0:02:37.1]} 13. Bxc6 {[%clk 0:02:19.7]} 13... bxc6 {[%clk
0:02:37.5]} 14. Bd6 {[%clk 0:02:21.2]} 14... Rd8 {[%clk 0:02:32.4]} 15. Qe1
{[%clk 0:01:43.9]} 15... Qxe1 {[%clk 0:02:28.7]} 16. Rfxe1 {[%clk 0:01:45.8]}
16... Bxd6 {[%clk 0:02:30.3]} 17. cxd6 {[%clk 0:01:47.7]} 17... Rxd6 {[%clk
0:02:28.2]} 18. Red1 {[%clk 0:01:48.8]} 18... Rxd1+ {[%clk 0:02:08.3]} 19. Rxd1
{[%clk 0:01:50.7]} 19... Kf8 {[%clk 0:02:09.9]} 20. Rd6 {[%clk 0:01:31.5]} 20...
Ke7 {[%clk 0:02:03.9]} 21. Rxc6 {[%clk 0:01:28.9]} 21... Bd7 {[%clk 0:02:05.3]}
22. Rc5 {[%clk 0:01:22.7]} 22... Rb8 {[%clk 0:02:03.4]} 23. Nc3 {[%clk
0:01:17.3]} 23... Rb2 {[%clk 0:01:34.5]} 24. Rxc4 {[%clk 0:01:17.8]} 24... Kd8
{[%clk 0:01:35.9]} 25. h4 {[%clk 0:01:07]} 25... Rxc2 {[%clk 0:01:36.2]} 26. f3
{[%clk 0:01:05.6]} 26... a5 {[%clk 0:01:25]} 27. Rc5 {[%clk 0:01:01.3]} 27... a4
{[%clk 0:01:10.9]} 28. Kh2 {[%clk 0:00:55]} 28... a3 {[%clk 0:01:07.5]} 29. Kg3
{[%clk 0:00:55.3]} 29... f6 {[%clk 0:01:07.6]} 30. f4 {[%clk 0:00:41.2]} 30...
h5 {[%clk 0:00:39.3]} 31. e4 {[%clk 0:00:37.2]} 31... Bc8 {[%clk 0:00:31.5]} 32.
Kf3 {[%clk 0:00:21.6]} 32... Ba6 {[%clk 0:00:31.2]} 33. g3 {[%clk 0:00:21.4]}
33... Bf1 {[%clk 0:00:27.4]} 34. e5 {[%clk 0:00:21.6]} 34... Kd7 {[%clk
0:00:22]} 35. Ke3 {[%clk 0:00:21.9]} 35... Rg2 {[%clk 0:00:17.9]} 36. Kf3 {[%clk
0:00:22.9]} 36... Rc2 {[%clk 0:00:19.1]} 37. Ke3 {[%clk 0:00:24.2]} 37... Bh3
{[%clk 0:00:14.5]} 38. Kd4 {[%clk 0:00:21.6]} 38... Rd2+ {[%clk 0:00:12.8]} 39.
Ke3 {[%clk 0:00:21.7]} 39... Rc2 {[%clk 0:00:14.3]} 40. Kd4 {[%clk 0:00:23.1]}
40... Bf5 {[%clk 0:00:14.7]} 41. Ra5 {[%clk 0:00:22.5]} 41... Rd2+ {[%clk
0:00:14]} 42. Kc5 {[%clk 0:00:22.2]} 42... Rd3 {[%clk 0:00:13.1]} 43. Rxa3
{[%clk 0:00:21.9]} 43... Rxg3 {[%clk 0:00:13.9]} 44. Ra7+ {[%clk 0:00:22.5]}
44... Ke8 {[%clk 0:00:14.6]} 45. Nb5 {[%clk 0:00:24.3]} 45... fxe5 {[%clk
0:00:15.4]} 46. fxe5 {[%clk 0:00:25.5]} 46... Kf8 {[%clk 0:00:16.6]} 47. Nd6
{[%clk 0:00:23.5]} 47... Bd3 {[%clk 0:00:11.6]} 48. Ra8+ {[%clk 0:00:21.4]}
48... Ke7 {[%clk 0:00:12.5]} 49. Ra7+ {[%clk 0:00:23.3]} 49... Kf8 {[%clk
0:00:13.9]} 50. Ra3 {[%clk 0:00:19.1]} 50... g5 {[%clk 0:00:15.1]} 51. Ne4
{[%clk 0:00:14.6]} 51... gxh4 {[%clk 0:00:05.8]} 52. Nxg3 {[%clk 0:00:11.8]}
52... hxg3 {[%clk 0:00:07.7]} 53. Rxd3 {[%clk 0:00:12.9]} 53... h4 {[%clk
0:00:09.6]} 54. Rf3+ {[%clk 0:00:12]} 54... Ke7 {[%clk 0:00:10.9]} 55. Rf4
{[%clk 0:00:06]} 55... h3 {[%clk 0:00:06.7]} 56. Rg4 {[%clk 0:00:03.6]} 56... h2
{[%clk 0:00:07.6]} 57. Rg7+ {[%clk 0:00:04.2]} 57... Kf8 {[%clk 0:00:08.3]} 58.
Rxg3 {[%clk 0:00:06.1]} 58... h1=Q {[%clk 0:00:08.9]} 59. Rd3 {[%clk 0:00:07.7]}
59... Qa1 {[%clk 0:00:08.9]} 60. Kd6 {[%clk 0:00:07.4]} 60... Qxa2 {[%clk
0:00:09.5]} 61. Rf3+ {[%clk 0:00:08.5]} 61... Ke8 {[%clk 0:00:10.5]} 62. Kc7
{[%clk 0:00:03.7]} 62... Qa7+ {[%clk 0:00:10.7]} 63. Kd6 {[%clk 0:00:03.7]}
63... Qb6# {[%clk 0:00:11.8]} 0-1

[Event "*** Titled Tuesday Blitz"]
[Site "Chess.com"]
[Date "2018.12.04"]
[Round "10"]
[White "jmduque"]
[Black "VerdeNotte"]
[Result "0-1"]
[WhiteElo "2416"]
[BlackElo "2836"]
[TimeControl "180+2"]
[EndTime "15:25:18 PST"]
[Termination "VerdeNotte won by resignation"]

1. e4 {[%clk 0:03:01.9]} 1... c5 {[%clk 0:03:00.4]} 2. Nf3 {[%clk 0:03:02.9]}
2... d6 {[%clk 0:03:01.5]} 3. d4 {[%clk 0:03:04.1]} 3... cxd4 {[%clk 0:03:03.4]}
4. Nxd4 {[%clk 0:03:05.9]} 4... Nf6 {[%clk 0:03:04.9]} 5. Nc3 {[%clk 0:03:07.5]}
5... g6 {[%clk 0:03:06.5]} 6. f3 {[%clk 0:03:08.6]} 6... Nc6 {[%clk 0:03:06.6]}
7. Be3 {[%clk 0:03:08.8]} 7... d5 {[%clk 0:03:07.8]} 8. Bb5 {[%clk 0:03:01.3]}
8... Bd7 {[%clk 0:03:08.1]} 9. exd5 {[%clk 0:03:01.5]} 9... Nb4 {[%clk 0:03:07]}
10. Bc4 {[%clk 0:02:55.2]} 10... Rc8 {[%clk 0:03:01.1]} 11. Bb3 {[%clk
0:02:56.2]} 11... Bg7 {[%clk 0:03:02.2]} 12. O-O {[%clk 0:02:54.9]} 12... O-O
{[%clk 0:03:02.4]} 13. Qd2 {[%clk 0:02:50]} 13... Rxc3 {[%clk 0:02:53.1]} 14.
bxc3 {[%clk 0:02:50]} 14... Nbxd5 {[%clk 0:02:53.7]} 15. Bh6 {[%clk 0:02:48.8]}
15... Bxh6 {[%clk 0:02:49.2]} 16. Qxh6 {[%clk 0:02:49.8]} 16... Nxc3 {[%clk
0:02:50.5]} 17. Qd2 {[%clk 0:02:42.7]} 17... Qa5 {[%clk 0:02:44.4]} 18. Rae1
{[%clk 0:02:29.6]} 18... Qc5 {[%clk 0:02:24.7]} 19. Kh1 {[%clk 0:02:09.4]} 19...
a5 {[%clk 0:02:24.4]} 20. Re3 {[%clk 0:02:02.7]} 20... Rc8 {[%clk 0:02:23.7]}
21. Rfe1 {[%clk 0:01:52.4]} 21... a4 {[%clk 0:02:17.8]} 22. Bxf7+ {[%clk
0:01:51.5]} 22... Kxf7 {[%clk 0:02:18.4]} 23. Rxe7+ {[%clk 0:01:51.7]} 23...
Qxe7 {[%clk 0:02:19.6]} 24. Rxe7+ {[%clk 0:01:52.1]} 24... Kxe7 {[%clk
0:02:21.5]} 25. g4 {[%clk 0:01:42.2]} 25... Nxa2 {[%clk 0:02:05.3]} 26. Qh6
{[%clk 0:01:36.2]} 26... Be8 {[%clk 0:01:53]} 27. g5 {[%clk 0:01:32.6]} 27...
Nd7 {[%clk 0:01:44]} 28. Qxh7+ {[%clk 0:01:20.7]} 28... Bf7 {[%clk 0:01:45.1]}
29. f4 {[%clk 0:00:59.7]} 29... Rc4 {[%clk 0:01:36.3]} 30. Qg7 {[%clk 0:00:59]}
30... b5 {[%clk 0:00:58.1]} 31. f5 {[%clk 0:00:58.5]} 31... Rxd4 {[%clk
0:00:59.1]} 32. Qxd4 {[%clk 0:00:54.6]} 32... gxf5 {[%clk 0:01:00.4]} 33. Qe3+
{[%clk 0:00:31.4]} 33... Kd8 {[%clk 0:00:49.7]} 34. g6 {[%clk 0:00:32.7]} 34...
Bd5+ {[%clk 0:00:46]} 35. Kg1 {[%clk 0:00:33.2]} 35... b4 {[%clk 0:00:45.9]} 36.
g7 {[%clk 0:00:31.5]} 36... Nc3 {[%clk 0:00:44.6]} 37. Qg5+ {[%clk 0:00:30.8]}
37... Kc7 {[%clk 0:00:42]} 38. g8=Q {[%clk 0:00:29.2]} 38... Bxg8 {[%clk
0:00:42.8]} 39. Qxg8 {[%clk 0:00:31.1]} 39... Kd6 {[%clk 0:00:31.9]} 40. Qc4
{[%clk 0:00:30.8]} 40... Nd5 {[%clk 0:00:29.7]} 41. h4 {[%clk 0:00:29.4]} 41...
a3 {[%clk 0:00:29.9]} 42. h5 {[%clk 0:00:30.7]} 42... N7f6 {[%clk 0:00:22.2]}
43. h6 {[%clk 0:00:30]} 43... Ke5 {[%clk 0:00:22.1]} 44. Kh2 {[%clk 0:00:22]}
44... Ng4+ {[%clk 0:00:20.1]} 45. Kh3 {[%clk 0:00:23]} 45... Nxh6 {[%clk
0:00:19.8]} 46. Qe2+ {[%clk 0:00:22.6]} 46... Kf6 {[%clk 0:00:14.7]} 47. Qa6+
{[%clk 0:00:22.7]} 47... Kg5 {[%clk 0:00:15.4]} 48. Qd6 {[%clk 0:00:21.7]} 48...
a2 {[%clk 0:00:13.3]} 49. Qa6 {[%clk 0:00:19.6]} 49... Nc3 {[%clk 0:00:14.3]}
50. Qa8 {[%clk 0:00:18.8]} 50... Kf4 {[%clk 0:00:10.4]} 51. Qb8+ {[%clk
0:00:19.5]} 51... Ke3 {[%clk 0:00:08.7]} 52. Qe8+ {[%clk 0:00:19.6]} 52... Kd2
{[%clk 0:00:08.6]} 53. Qa8 {[%clk 0:00:20.1]} 53... Kc1 {[%clk 0:00:08]} 54.
Qh1+ {[%clk 0:00:20.5]} 54... Kb2 {[%clk 0:00:08.9]} 55. Kh4 {[%clk 0:00:19]}
55... a1=Q {[%clk 0:00:09.8]} 56. Qb7 {[%clk 0:00:18.9]} 56... Qe1+ {[%clk
0:00:09.8]} 57. Kg5 {[%clk 0:00:20]} 57... Qe3+ {[%clk 0:00:10.4]} 58. Kg6
{[%clk 0:00:21]} 58... Qd4 {[%clk 0:00:07.9]} 59. Kh5 {[%clk 0:00:21.5]} 59...
Ng4 {[%clk 0:00:07.7]} 60. Kh4 {[%clk 0:00:22.5]} 60... Ne3+ {[%clk 0:00:08.6]}
61. Kh5 {[%clk 0:00:24]} 61... Qg4+ {[%clk 0:00:08.5]} 62. Kh6 {[%clk
0:00:25.3]} 62... Nxc2 {[%clk 0:00:10.2]} 63. Qe7 {[%clk 0:00:12.3]} 63... f4
{[%clk 0:00:09.6]} 64. Qf7 {[%clk 0:00:06]} 64... f3 {[%clk 0:00:08.8]} 65. Qf6
{[%clk 0:00:07.1]} 65... Qg3 {[%clk 0:00:07.7]} 0-1

[Event "*** Titled Tuesday Blitz"]
[Site "Chess.com"]
[Date "2018.12.04"]
[Round "10"]
[White "JonahWillow"]
[Black "chessking2151"]
[Result "1-0"]
[WhiteElo "2683"]
[BlackElo "2556"]
[TimeControl "180+2"]
[EndTime "15:25:22 PST"]
[Termination "JonahWillow won by resignation"]

1. e4 {[%clk 0:03:01.9]} 1... e5 {[%clk 0:03:00.5]} 2. Nf3 {[%clk 0:03:02.8]}
2... Nc6 {[%clk 0:03:01.2]} 3. Nc3 {[%clk 0:03:04.7]} 3... Nf6 {[%clk
0:03:01.3]} 4. Bb5 {[%clk 0:03:06.4]} 4... Nd4 {[%clk 0:03:01]} 5. Bc4 {[%clk
0:03:06.9]} 5... Nxf3+ {[%clk 0:02:59.8]} 6. gxf3 {[%clk 0:03:07]} 6... c6
{[%clk 0:02:59.3]} 7. Rg1 {[%clk 0:03:03.1]} 7... g6 {[%clk 0:02:58.5]} 8. d3
{[%clk 0:03:03.1]} 8... d6 {[%clk 0:02:59.3]} 9. Bg5 {[%clk 0:03:00.1]} 9... Be7
{[%clk 0:03:00.4]} 10. Bh6 {[%clk 0:02:58.8]} 10... Qb6 {[%clk 0:02:57.1]} 11.
Qd2 {[%clk 0:02:58.3]} 11... Nh5 {[%clk 0:02:55.4]} 12. O-O-O {[%clk 0:02:56.3]}
12... Be6 {[%clk 0:02:48.6]} 13. Bb3 {[%clk 0:02:36.3]} 13... O-O-O {[%clk
0:02:45.6]} 14. Na4 {[%clk 0:02:23.8]} 14... Qc7 {[%clk 0:02:45]} 15. Kb1 {[%clk
0:02:24.9]} 15... Bxb3 {[%clk 0:02:42.2]} 16. axb3 {[%clk 0:02:26.8]} 16... Bf8
{[%clk 0:02:43.6]} 17. Bg5 {[%clk 0:02:26]} 17... Be7 {[%clk 0:02:42.1]} 18. Bh6
{[%clk 0:02:25.8]} 18... d5 {[%clk 0:02:42]} 19. Nc3 {[%clk 0:02:23]} 19... Bb4
{[%clk 0:02:38]} 20. Qg5 {[%clk 0:02:19.8]} 20... f6 {[%clk 0:02:34]} 21. Qg4+
{[%clk 0:02:19.8]} 21... Kb8 {[%clk 0:02:35.6]} 22. Ne2 {[%clk 0:02:14.5]} 22...
d4 {[%clk 0:02:31]} 23. f4 {[%clk 0:02:13.8]} 23... a5 {[%clk 0:02:30.7]} 24.
fxe5 {[%clk 0:02:13.6]} 24... fxe5 {[%clk 0:02:31.5]} 25. f4 {[%clk 0:02:14.1]}
25... Bd6 {[%clk 0:02:20.8]} 26. f5 {[%clk 0:02:13.2]} 26... Rhg8 {[%clk
0:02:12.5]} 27. Rdf1 {[%clk 0:01:48.1]} 27... Nf6 {[%clk 0:02:00.8]} 28. Qh4
{[%clk 0:01:46.7]} 28... Ne8 {[%clk 0:01:53.4]} 29. fxg6 {[%clk 0:01:45.4]}
29... hxg6 {[%clk 0:01:53.6]} 30. Bg5 {[%clk 0:01:46.4]} 30... Rc8 {[%clk
0:01:54]} 31. Rf2 {[%clk 0:01:43.4]} 31... a4 {[%clk 0:01:37.2]} 32. Nc1 {[%clk
0:01:33.8]} 32... a3 {[%clk 0:01:35]} 33. bxa3 {[%clk 0:01:31.8]} 33... Bxa3
{[%clk 0:01:35.5]} 34. Rgf1 {[%clk 0:01:29.6]} 34... Qa5 {[%clk 0:01:35.7]} 35.
Bd2 {[%clk 0:01:28.8]} 35... Bb4 {[%clk 0:01:22.8]} 36. Bxb4 {[%clk 0:01:27.1]}
36... Qxb4 {[%clk 0:01:24.7]} 37. Rf7 {[%clk 0:01:25]} 37... Nd6 {[%clk
0:01:25]} 38. Rd7 {[%clk 0:01:24.2]} 38... Nb5 {[%clk 0:01:26]} 39. Na2 {[%clk
0:01:18.6]} 39... Qa5 {[%clk 0:00:49.8]} 40. Rff7 {[%clk 0:01:16.7]} 40... Nc7
{[%clk 0:00:45.3]} 41. Qe7 {[%clk 0:01:14.3]} 41... Rge8 {[%clk 0:00:40]} 42.
Qb4 {[%clk 0:01:11.6]} 42... Qa7 {[%clk 0:00:37.2]} 43. h4 {[%clk 0:01:06.7]}
43... Red8 {[%clk 0:00:31.8]} 44. Rxd8 {[%clk 0:01:05.5]} 44... Rxd8 {[%clk
0:00:32.8]} 45. Qe7 {[%clk 0:01:07.1]} 45... Rc8 {[%clk 0:00:34.1]} 46. Qxe5
{[%clk 0:01:05.9]} 46... Qb6 {[%clk 0:00:33]} 47. b4 {[%clk 0:00:52.3]} 47... c5
{[%clk 0:00:13.1]} 48. Qxc5 {[%clk 0:00:49.2]} 48... Qe6 {[%clk 0:00:14.4]} 49.
Rf8 {[%clk 0:00:43.2]} 49... Rxf8 {[%clk 0:00:08.7]} 50. Qxf8+ {[%clk
0:00:45.1]} 50... Ne8 {[%clk 0:00:10.3]} 51. Qf4+ {[%clk 0:00:41.4]} 51... Ka7
{[%clk 0:00:11]} 52. Qf2 {[%clk 0:00:39.9]} 52... Qg4 {[%clk 0:00:05.1]} 53.
Qxd4+ {[%clk 0:00:39.2]} 53... b6 {[%clk 0:00:05.9]} 54. Nc3 {[%clk 0:00:35.5]}
54... Nc7 {[%clk 0:00:07.2]} 55. Kb2 {[%clk 0:00:33.3]} 55... Kb7 {[%clk
0:00:07.9]} 56. Nd5 {[%clk 0:00:30.9]} 56... Nxd5 {[%clk 0:00:04.6]} 57. Qxd5+
{[%clk 0:00:32.8]} 57... Kc7 {[%clk 0:00:05.3]} 58. Qf7+ {[%clk 0:00:31.5]}
58... Kb8 {[%clk 0:00:05.8]} 59. e5 {[%clk 0:00:29.5]} 59... Qd4+ {[%clk
0:00:06.4]} 60. Kb3 {[%clk 0:00:28.8]} 60... Qxe5 {[%clk 0:00:07.3]} 61. Qxg6
{[%clk 0:00:28.9]} 61... Qd5+ {[%clk 0:00:08.1]} 62. c4 {[%clk 0:00:28.8]} 62...
Qd4 {[%clk 0:00:07.7]} 63. Qe4 {[%clk 0:00:27.9]} 63... Qa1 {[%clk 0:00:07.8]}
64. h5 {[%clk 0:00:27.1]} 64... Qb1+ {[%clk 0:00:08.4]} 65. Kc3 {[%clk
0:00:27.5]} 65... Qa1+ {[%clk 0:00:08.2]} 66. Kd2 {[%clk 0:00:28.3]} 66... Qb2+
{[%clk 0:00:09.6]} 67. Ke3 {[%clk 0:00:29.7]} 67... Qc1+ {[%clk 0:00:09]} 68.
Kd4 {[%clk 0:00:28.3]} 68... Qg1+ {[%clk 0:00:09.9]} 69. Kd5 {[%clk 0:00:29.5]}
69... Qg8+ {[%clk 0:00:10.7]} 70. Qe6 {[%clk 0:00:29.4]} 70... Qg2+ {[%clk
0:00:10.5]} 71. Kd6 {[%clk 0:00:29.1]} 71... Qg3+ {[%clk 0:00:10.5]} 72. Qe5
{[%clk 0:00:29.3]} 72... Qxd3+ {[%clk 0:00:10.4]} 73. Kc6+ {[%clk 0:00:27.8]}
73... Ka8 {[%clk 0:00:11.8]} 74. Qe8+ {[%clk 0:00:25.7]} 74... Ka7 {[%clk
0:00:13.2]} 75. Qe7+ {[%clk 0:00:25.6]} 1-0

[Event "*** Titled Tuesday Blitz"]
[Site "Chess.com"]
[Date "2018.12.04"]
[Round "10"]
[White "biostatistician"]
[Black "kasparik_garik"]
[Result "1-0"]
[WhiteElo "2476"]
[BlackElo "2497"]
[TimeControl "180+2"]
[EndTime "15:25:35 PST"]
[Termination "biostatistician won by resignation"]

1. d4 {[%clk 0:03:01.8]} 1... Nf6 {[%clk 0:02:56.9]} 2. Nf3 {[%clk 0:03:02.6]}
2... d6 {[%clk 0:02:57.6]} 3. c4 {[%clk 0:03:03.5]} 3... g6 {[%clk 0:02:57.2]}
4. Nc3 {[%clk 0:03:05.4]} 4... Bf5 {[%clk 0:02:58.1]} 5. d5 {[%clk 0:03:06.1]}
5... Bg7 {[%clk 0:02:57.5]} 6. Nd4 {[%clk 0:03:07.5]} 6... O-O {[%clk
0:02:55.9]} 7. Nxf5 {[%clk 0:03:08.6]} 7... gxf5 {[%clk 0:02:57]} 8. Qc2 {[%clk
0:03:07.7]} 8... Qd7 {[%clk 0:02:57.7]} 9. g3 {[%clk 0:03:07.6]} 9... Na6 {[%clk
0:02:56]} 10. Bh3 {[%clk 0:03:08]} 10... e6 {[%clk 0:02:56.7]} 11. O-O {[%clk
0:03:07.8]} 11... Nc5 {[%clk 0:02:55.9]} 12. Rb1 {[%clk 0:03:03.9]} 12... c6
{[%clk 0:02:53]} 13. Rd1 {[%clk 0:03:02.1]} 13... cxd5 {[%clk 0:02:52.5]} 14.
cxd5 {[%clk 0:03:04]} 14... Rac8 {[%clk 0:02:51.3]} 15. Bf4 {[%clk 0:03:00.8]}
15... Nce4 {[%clk 0:02:51.2]} 16. Qb3 {[%clk 0:02:55.3]} 16... Nxc3 {[%clk
0:02:48.9]} 17. bxc3 {[%clk 0:02:57.2]} 17... Nxd5 {[%clk 0:02:49.6]} 18. c4
{[%clk 0:02:39.9]} 18... Nxf4 {[%clk 0:02:48]} 19. gxf4 {[%clk 0:02:40.5]} 19...
b6 {[%clk 0:02:44.8]} 20. e3 {[%clk 0:02:40.4]} 20... Rc5 {[%clk 0:02:42.1]} 21.
Qd3 {[%clk 0:02:28.3]} 21... Rd8 {[%clk 0:02:36.1]} 22. Rd2 {[%clk 0:02:27.6]}
22... Qc7 {[%clk 0:02:36.1]} 23. Bf1 {[%clk 0:02:27.2]} 23... Bf6 {[%clk
0:02:33.8]} 24. Rbd1 {[%clk 0:02:28.2]} 24... Kh8 {[%clk 0:02:30]} 25. h3 {[%clk
0:02:21.7]} 25... a6 {[%clk 0:02:08.2]} 26. Kh2 {[%clk 0:02:16.6]} 26... b5
{[%clk 0:02:04.6]} 27. cxb5 {[%clk 0:02:18.5]} 27... axb5 {[%clk 0:02:05.7]} 28.
Qe2 {[%clk 0:02:18.8]} 28... d5 {[%clk 0:02:04.7]} 29. Qh5 {[%clk 0:02:19.4]}
29... b4 {[%clk 0:02:01.2]} 30. Bd3 {[%clk 0:02:17.3]} 30... Rg8 {[%clk
0:02:00.5]} 31. Rf1 {[%clk 0:02:05.5]} 31... Rg6 {[%clk 0:02:00.8]} 32. Rdd1
{[%clk 0:02:06]} 32... Qa7 {[%clk 0:01:52]} 33. Qe2 {[%clk 0:02:06.6]} 33... Rc6
{[%clk 0:01:50.9]} 34. Rb1 {[%clk 0:02:04.6]} 34... Bc3 {[%clk 0:01:51]} 35. Rb3
{[%clk 0:02:03.9]} 35... Rc8 {[%clk 0:01:51.5]} 36. Rg1 {[%clk 0:01:57]} 36...
Rcg8 {[%clk 0:01:51.7]} 37. Rxg6 {[%clk 0:01:58.4]} 37... hxg6 {[%clk
0:01:49.1]} 38. a3 {[%clk 0:01:57.1]} 38... Kg7 {[%clk 0:01:48.1]} 39. axb4
{[%clk 0:01:57.4]} 39... Bf6 {[%clk 0:01:48.2]} 40. b5 {[%clk 0:01:56.4]} 40...
Rh8 {[%clk 0:01:48.4]} 41. b6 {[%clk 0:01:55.5]} 41... Qa1 {[%clk 0:01:49]} 42.
Rb1 {[%clk 0:01:48.2]} 42... Qc3 {[%clk 0:01:49.4]} 43. b7 {[%clk 0:01:48.4]}
43... Rb8 {[%clk 0:01:50]} 44. Ba6 {[%clk 0:01:48.2]} 44... d4 {[%clk
0:01:41.7]} 45. Qd3 {[%clk 0:01:46.4]} 45... Qc7 {[%clk 0:01:37.6]} 46. Qd1
{[%clk 0:01:05.4]} 46... e5 {[%clk 0:01:33.9]} 47. Rc1 {[%clk 0:01:05.3]} 47...
Qd6 {[%clk 0:01:33.1]} 48. Rc8 {[%clk 0:00:46.6]} 48... exf4 {[%clk 0:01:33.3]}
49. exd4 {[%clk 0:00:45]} 49... f3+ {[%clk 0:01:27.5]} 50. Kh1 {[%clk
0:00:44.2]} 50... Bg5 {[%clk 0:01:00.1]} 51. Qxf3 {[%clk 0:00:36.4]} 51... Bf4
{[%clk 0:00:54.2]} 52. Rxb8 {[%clk 0:00:35.5]} 52... Qxb8 {[%clk 0:00:54.9]} 53.
Kg2 {[%clk 0:00:35.3]} 53... Bd6 {[%clk 0:00:51.9]} 54. Bc4 {[%clk 0:00:33.8]}
54... Qf8 {[%clk 0:00:43.1]} 55. Qd5 {[%clk 0:00:33.6]} 55... Bb8 {[%clk
0:00:44]} 56. Qd7 {[%clk 0:00:33.9]} 56... Kf6 {[%clk 0:00:39.4]} 57. Kf3 {[%clk
0:00:27.9]} 57... Kg5 {[%clk 0:00:37.1]} 58. Bxf7 {[%clk 0:00:23.6]} 58... Qa3+
{[%clk 0:00:35.7]} 59. Kg2 {[%clk 0:00:24.8]} 59... f4 {[%clk 0:00:28.7]} 60.
Qd5+ {[%clk 0:00:21.2]} 60... Kf6 {[%clk 0:00:26.4]} 61. Qe6+ {[%clk 0:00:22.1]}
61... Kg7 {[%clk 0:00:26.9]} 62. Qxg6+ {[%clk 0:00:23.8]} 62... Kf8 {[%clk
0:00:27.7]} 63. Qg8+ {[%clk 0:00:25.2]} 63... Ke7 {[%clk 0:00:28.8]} 64. Qxb8
{[%clk 0:00:26.7]} 64... Kxf7 {[%clk 0:00:27.1]} 65. Qxf4+ {[%clk 0:00:27.1]}
65... Kg6 {[%clk 0:00:23]} 66. b8=Q {[%clk 0:00:29]} 66... Kh5 {[%clk
0:00:23.1]} 67. Qh8+ {[%clk 0:00:28.2]} 1-0